fUSD/lending_fUSD_20251226
["ID","MTS","AMOUNT","RATE_DAILY","PERIOD"]
[399867874,1766778645795,-200.0,0.00014485,2]
[399867875,1766778645805,-200.0,0.00014485,2]
[399867876,1766778645815,-200.0,0.00014485,2]
[399867877,1766778645825,-200.0,0.00014485,2]
[399867878,1766778645834,-166.66,0.00014576,2]
[399867879,1766778645844,-2000.0,0.00014616,2]
[399867881,1766778645853,-1336.09910628,0.00014616,2]
[399867883,1766778645863,-3839.00143581,0.00014624,2]
[399867885,1766778645872,-200.0,0.0001463,2]
[399867887,1766778645882,-200.0,0.0001463,2]
[399867889,1766778645892,-200.0,0.0001463,2]
[399867891,1766778645901,-200.0,0.0001463,2]
[399867892,1766778645910,-2500.0,0.00014633,2]
[399867893,1766778645921,-5055.76,0.00014723,2]
[399867894,1766778645931,-1000.0,0.00014733,2]
[399867895,1766778645941,-1000.0,0.00014733,2]
[399867896,1766778645951,-1000.0,0.00014733,2]
[399867897,1766778645961,-1000.0,0.00014733,2]
[399867898,1766778645971,-1000.0,0.00014733,2]
[399867899,1766778645981,-1000.0,0.00014733,2]
[399867900,1766778645990,-399.41970982,0.00014733,2]
[399867901,1766778646007,-600.58029018,0.00014733,2]
[399867902,1766778646017,-1000.0,0.00014733,2]
[399867903,1766778646027,-1000.0,0.00014733,2]
[399867904,1766778646037,-1000.0,0.00014733,2]
[399867905,1766778646046,-1000.0,0.00014733,2]
[399867906,1766778646056,-1000.0,0.00014733,2]
[399867908,1766778646067,-1000.0,0.00014733,2]
[399867910,1766778646076,-775.42298975,0.00014733,2]
[399867911,1766778646087,-224.57701025,0.00014733,2]
[399867912,1766778646097,-1000.0,0.00014733,2]
[399867913,1766778646107,-1000.0,0.00014733,2]
[399867914,1766778646117,-1000.0,0.00014733,2]
[399867915,1766778646126,-1000.0,0.00014733,2]
[399867916,1766778646136,-575.89595418,0.00014733,2]
[399867917,1766778646147,-424.10404582,0.00014733,2]
[399867918,1766778646157,-1000.0,0.00014733,2]
[399867919,1766778646167,-1000.0,0.00014733,2]
[399867920,1766778646177,-1000.0,0.00014733,2]
[399867921,1766778646186,-1000.0,0.00014733,2]
[399867922,1766778646196,-1000.0,0.00014733,2]
[399867923,1766778646206,-1000.0,0.00014733,2]
[399867924,1766778646215,-1000.0,0.00014733,2]
[399867925,1766778646225,-1078.38362935,0.00014733,2]
[399867926,1766778646235,-234.70696618,0.00014733,2]
[399867927,1766778646245,-151.0,0.00014733,2]
[399867928,1766778646254,-920.00461164,0.00014733,2]
[399867929,1766778646263,-200.0,0.00014777,2]
[399867930,1766778646273,-200.0,0.00014777,2]
[399867931,1766778646283,-200.0,0.00014777,2]
[399867932,1766778646293,-200.0,0.00014777,2]
[399867933,1766778646303,-159.79407271,0.00014788,2]
[399867934,1766778646314,-178.0,0.00014846,2]
[399867935,1766778646323,-3152.0,0.00014886,2]
[399867936,1766778646333,-612.0,0.00014886,2]
[399867937,1766778646344,-1330.846,0.00014886,2]
[399867938,1766778646355,-1610.0,0.00014886,2]
[399867939,1766778646365,-432.0,0.00014886,2]
[399867940,1766778646375,-1263.0,0.00014886,2]
[399867941,1766778646385,-564.0,0.00014886,2]
[399867942,1766778646396,-2430.0,0.00014886,2]
[399867943,1766778646406,-212.0,0.00014886,2]
[399867944,1766778646416,-150.0,0.00014886,2]
[399867945,1766778646427,-151.0,0.00014981,2]
[399867946,1766778646437,-500.0,0.00014983,2]
[399867947,1766778646446,-8779.03977666,0.00014984,2]
[399867948,1766778646458,-505.01796416,0.00014984,2]
[399868173,1766779447940,6578.277844,7.945e-05,2]
[399868191,1766779508697,9009.480978,7.945e-05,2]
[399868291,1766779748070,6752.707599,7.945e-05,2]
[399868311,1766779831640,-500.0,0.00012873,2]
[399868312,1766779831650,-500.0,0.00012973,2]
[399868313,1766779831675,-500.0,0.00012973,2]
[399868314,1766779831686,-200.37128802,0.00013032,2]
[399868315,1766779831696,-187.15078352,0.00013521,2]
[399868316,1766779831714,-570.88444884,0.00013521,2]
[399868317,1766779831727,-241.96476764,0.00013521,2]
[399868318,1766779831737,-1000.0,0.00013568,2]
[399868319,1766779831747,-200.0,0.00013699,2]
[399868320,1766779831758,-1500.0,0.00014068,2]
[399868321,1766779831768,-250.0,0.00014135,2]
[399868322,1766779831778,-322.6107,0.00014151,2]
[399868323,1766779831789,-720.0,0.00014158,2]
[399868324,1766779831799,-180.0,0.00014158,2]
[399868325,1766779831810,-300.0,0.00014159,2]
[399868326,1766779831820,-1273.33613579,0.0001416,2]
[399868327,1766779831833,-1226.66386421,0.0001416,2]
[399868328,1766779831843,-2500.0,0.0001416,2]
[399868329,1766779831854,-195.0,0.0001416,2]
[399868330,1766779831864,-193.0,0.0001416,2]
[399868331,1766779831874,-250.0,0.0001416,2]
[399868332,1766779831884,-2430.0,0.00014222,2]
[399868334,1766779831894,-564.0,0.00014222,2]
[399868336,1766779831905,-2012.45030057,0.00014366,2]
[399868338,1766779831915,-150.0,0.00014381,2]
[399868340,1766779831926,-7.86213689,0.00014382,2]
[399868545,1766779837737,-7708.71037463,0.00014382,2]
[399868546,1766779837748,-185.05,0.00014421,2]
[399868547,1766779837758,-2527.88,0.00014425,2]
[399868548,1766779837768,-2527.88,0.00014425,2]
[399868549,1766779837777,-211.53617094,0.00014425,2]
[399868550,1766779837788,-200.0,0.00014425,2]
[399868551,1766779837798,-151.0,0.00014425,2]
[399868552,1766779837808,-151.0,0.00014425,2]
[399868553,1766779837819,-574.12855637,0.00014425,2]
[399868554,1766779837829,-151.0,0.00014425,2]
[399868555,1766779837839,-151.0,0.00014425,2]
[399868556,1766779837850,-151.0,0.00014425,2]
[399868557,1766779837860,-151.0,0.00014425,2]
[399868558,1766779837870,-500.0,0.00014425,2]
[399868559,1766779837880,-500.0,0.00014425,2]
[399868560,1766779837890,-500.0,0.00014425,2]
[399868561,1766779837900,-500.0,0.00014425,2]
[399868562,1766779837914,-500.0,0.00014425,2]
[399868563,1766779837924,-500.0,0.00014425,2]
[399868564,1766779837934,-500.0,0.00014425,2]
[399868565,1766779837949,-151.0,0.00014425,2]
[399868566,1766779837959,-500.0,0.00014425,2]
[399868567,1766779837969,-151.0,0.00014425,2]
[399868568,1766779837979,-500.0,0.00014425,2]
[399868569,1766779837989,-250.0,0.00014425,2]
[399868570,1766779837999,-151.0,0.00014425,2]
[399868571,1766779838009,-230.75089253,0.00014425,2]
[399868627,1766779839689,-912.0,0.00014222,2]
[399868629,1766779839700,-269.24910747,0.00014425,2]
[399868631,1766779839710,-250.0,0.00014425,2]
[399868633,1766779839720,-158.86938583,0.00014425,2]
[399868635,1766779839730,-500.0,0.00014425,2]
[399868637,1766779839740,-250.0,0.00014425,2]
[399868639,1766779839750,-250.0,0.00014425,2]
[399868641,1766779839759,-250.0,0.00014425,2]
[399868643,1766779839768,-250.0,0.00014425,2]
[399868645,1766779839778,-250.0,0.00014425,2]
[399868647,1766779839788,-250.0,0.00014425,2]
[399868649,1766779839797,-250.0,0.00014425,2]
[399868651,1766779839807,-250.0,0.00014425,2]
[399868653,1766779839817,-250.0,0.00014425,2]
[399868655,1766779839826,-167.344,0.00014426,2]
[399868657,1766779839836,-1234.125,0.00014426,2]
[399868659,1766779839846,-151.0,0.00014432,2]
[399868661,1766779839856,-273.68156877,0.00014432,2]
[399868663,1766779839866,-500.0,0.00014434,2]
[399868665,1766779839876,-479.8553071,0.00014434,2]
[399868667,1766779839886,-500.0,0.00014434,2]
[399868669,1766779839896,-500.0,0.00014434,2]
[399868671,1766779839906,-500.0,0.00014434,2]
[399868673,1766779839916,-500.0,0.00014434,2]
[399868675,1766779839926,-500.0,0.00014434,2]
[399868677,1766779839938,-500.0,0.00014434,2]
[399868679,1766779839948,-500.0,0.00014434,2]
[399868681,1766779839961,-500.0,0.00014434,2]
[399868683,1766779839971,-500.0,0.00014434,2]
[399868685,1766779839982,-500.0,0.00014434,2]
[399868687,1766779839992,-500.0,0.00014434,2]
[399868689,1766779840004,-500.0,0.00014434,2]
[399868691,1766779840015,-500.0,0.00014434,2]
[399868693,1766779840025,-500.0,0.00014434,2]
[399868695,1766779840034,-500.0,0.00014434,2]
[399868697,1766779840044,-500.0,0.00014434,2]
[399868700,1766779840054,-500.0,0.00014434,2]
[399868702,1766779840064,-500.0,0.00014434,2]
[399868703,1766779840074,-500.0,0.00014434,2]
[399868705,1766779840083,-500.0,0.00014434,2]
[399868708,1766779840093,-500.0,0.00014434,2]
[399868710,1766779840103,-500.0,0.00014434,2]
[399868712,1766779840112,-500.0,0.00014434,2]
[399868714,1766779840122,-500.0,0.00014434,2]
[399868715,1766779840132,-500.0,0.00014434,2]
[399868717,1766779840142,-500.0,0.00014434,2]
[399868720,1766779840152,-500.0,0.00014434,2]
[399868722,1766779840162,-272.98238883,0.00014434,2]
[399868724,1766779840171,-500.0,0.00014434,2]
[399868726,1766779840181,-170.09376054,0.00014434,2]
[399868728,1766779840192,-500.0,0.00014434,2]
[399868730,1766779840202,-500.0,0.00014434,2]
[399868732,1766779840212,-182.90200094,0.00014434,2]
[399868734,1766779840221,-500.0,0.00014434,2]
[399868737,1766779840230,-500.0,0.00014434,2]
[399868739,1766779840240,-500.0,0.00014434,2]
[399868741,1766779840250,-459.65693429,0.00014434,2]
[399868743,1766779840260,-500.0,0.00014434,2]
[399868745,1766779840270,-500.0,0.00014434,2]
[399868747,1766779840279,-388.91267767,0.00014434,2]
[399868749,1766779840289,-635.54071019,0.00014434,2]
[399868751,1766779840299,-500.0,0.00014434,2]
[399868753,1766779840309,-500.0,0.00014434,2]
[399868755,1766779840318,-500.0,0.00014434,2]
[399868757,1766779840329,-500.0,0.00014434,2]
[399868759,1766779840339,-500.0,0.00014434,2]
[399868761,1766779840349,-500.0,0.00014434,2]
[399868763,1766779840359,-500.0,0.00014434,2]
[399868765,1766779840369,-520.7850389,0.00014434,2]
[399868766,1766779840379,-5262.0,0.00014435,2]
[399868767,1766779840389,-5504.58977651,0.00014435,2]
[399868774,1766779840603,-3864.32814601,0.00014435,2]
[399868775,1766779840618,-37889.36476936,0.00014435,2]
[399868776,1766779840638,-145777.08326459,0.00014435,2]
[399868777,1766779840654,-371.67173234,0.00014435,2]
[399868778,1766779840665,-479.02705915,0.00014435,2]
[399868779,1766779840678,-277.07654854,0.00014435,2]
[399868780,1766779840690,-2291.63780174,0.00014435,2]
[399868781,1766779840701,-617.33224784,0.00014435,2]
[399868784,1766779843320,-1301.59695108,0.00014435,2]
[399868785,1766779843332,-619.9830055,0.00014435,2]
[399868786,1766779843344,-71563.98,0.00014435,2]
[399868787,1766779843956,-4543.22909302,0.00014435,2]
[399868788,1766779844011,-60427.71167515,0.00014435,2]
[399868799,1766779845872,-67089.0364961,0.00014435,2]
[399868855,1766780108052,3850.684563,7.945e-05,2]
[399869023,1766780967162,992.77,6.513e-05,2]
[399869024,1766780967283,992.77,6.856e-05,2]
[399869025,1766780967478,992.77,7.199e-05,2]
[399869026,1766780967709,992.77,7.542e-05,2]
[399869027,1766780967920,992.77,7.885e-05,2]
[399869028,1766780968151,992.77,8.227e-05,2]
[399869029,1766780968470,992.77,8.57e-05,2]
[399869030,1766780968680,992.77,8.913e-05,2]
[399869031,1766780968883,992.77,9.256e-05,2]
[399869032,1766780969091,992.77,9.599e-05,2]
[399869033,1766780969306,992.77,9.942e-05,2]
[399869034,1766780969530,992.77,0.00010284,2]
[399869035,1766780969762,992.77,0.00010627,2]
[399869036,1766780969965,992.77,0.0001097,2]
[399869037,1766780970156,992.77,0.00011313,2]
[399869038,1766780970366,992.77,0.00011656,2]
[399869039,1766780970565,992.77,0.00011999,2]
[399869052,1766781031771,-400.0,0.00012341,2]
[399869054,1766781031783,-592.77,0.00012341,2]
[399869057,1766781031796,-992.77,0.00012684,2]
[399869059,1766781031809,-166.66,0.00012691,2]
[399869060,1766781031818,-273.1107,0.00012773,2]
[399869061,1766781031828,-166.66,0.00012959,2]
[399869062,1766781031839,-992.77,0.00013027,2]
[399869063,1766781031855,-69.54039897,0.00013065,2]
[399869064,1766781031868,-101.27960103,0.00013065,2]
[399869065,1766781031878,-166.66,0.00013226,2]
[399869066,1766781031888,-186.75751033,0.00013287,2]
[399869067,1766781031899,-220.12643023,0.00013287,2]
[399869068,1766781031910,-150.0,0.00013342,2]
[399869069,1766781031932,-1157.59,0.00013387,2]
[399869070,1766781031944,-166.66,0.00013493,2]
[399869071,1766781031954,-514.58,0.00013513,2]
[399869072,1766781031968,-241.98727807,0.00013575,2]
[399869073,1766781031980,-58.01272193,0.00013575,2]
[399869074,1766781031989,-322.6107,0.00013678,2]
[399869075,1766781031999,-1200.0,0.00013698,2]
[399869076,1766781032009,-599.78,0.00013699,2]
[399869077,1766781032019,-166.66,0.0001376,2]
[399869078,1766781032029,-406.88394054,0.0001378,2]
[399869079,1766781032039,-166.66,0.00014027,2]
[399869080,1766781032049,-300.0,0.00014049,2]
[399869081,1766781032059,-300.0,0.00014049,2]
[399869082,1766781032069,-195.0,0.0001405,2]
[399869083,1766781032079,-184.23968501,0.00014173,2]
[399869084,1766781032089,-9122.0007231,0.00014234,2]
[399869085,1766781032102,-3668.11136025,0.00014234,2]
[399869086,1766781032114,-535.26376916,0.00014234,2]
[399869088,1766781032125,-73229.43556358,0.00014234,2]
[399869090,1766781032137,-1241.96041967,0.00014234,2]
[399869091,1766781032149,-5722.72505615,0.00014234,2]
[399869092,1766781032167,-648.81124504,0.00014234,2]
[399869093,1766781032179,-8847.35,0.00014234,2]
[399869094,1766781032191,-3963.39318,0.00014234,2]
[399869179,1766781037903,-266.77230723,0.00014233,2]
[399869180,1766781037916,-233.22769277,0.00014233,2]
[399869181,1766781037926,-500.0,0.00014233,2]
[399869182,1766781037937,-131.77860035,0.00014233,2]
[399869183,1766781037958,-354.0347142,0.00014233,2]
[399869184,1766781037970,-14.18668545,0.00014233,2]
[399869185,1766781037980,-500.0,0.00014233,2]
[399869186,1766781037990,-167.65225909,0.00014233,2]
[399869187,1766781038000,-4065.77787642,0.00014234,2]
[399869188,1766781038017,-5955.304,0.00014234,2]
[399869189,1766781038028,-1000.0,0.00014234,2]
[399869190,1766781038074,-1038.15817152,0.00014234,2]
[399869209,1766781039963,-543.74,0.00014234,2]
[399869210,1766781039975,-50199.60562156,0.00014234,2]
[399869211,1766781039987,-707.12359549,0.00014234,2]
[399869212,1766781040015,-11744.97166026,0.00014234,2]
[399869213,1766781040027,-12525.63872259,0.00014234,2]
[399869214,1766781040038,-1201.2,0.00014234,2]
[399869215,1766781040050,-38683.1044579,0.00014234,2]
[399869216,1766781040084,-843.07199268,0.00014234,2]
[399869217,1766781040099,-2544.83297384,0.00014234,2]
[399869218,1766781040113,-3782.47096067,0.00014234,2]
[399869224,1766781040195,-1134.21112236,0.00014234,2]
[399869225,1766781040207,-4733.18646971,0.00014234,2]
[399869226,1766781040218,-1315.54446228,0.00014234,2]
[399869227,1766781040230,-1847.72,0.00014234,2]
[399869228,1766781040360,-1789.01,0.00014234,2]
[399869241,1766781043602,-273.1,0.00014234,2]
[399869242,1766781043615,-594.81817628,0.00014234,2]
[399869243,1766781043627,-837.52630056,0.00014234,2]
[399869244,1766781044364,-657.2440584,0.00014234,2]
[399869245,1766781044474,-255.80595542,0.00014234,2]
[399869248,1766781045942,-2620.37911309,0.00014234,2]
[399869249,1766781046163,-25000.000006,0.00014234,2]
[399869250,1766781046175,-4214.05099347,0.00014234,2]
[399869260,1766781102680,299.99,0.0003013,120]
[399869365,1766782232041,-1000.0,0.00013364,2]
[399869366,1766782232052,-152.29,0.00013458,2]
[399869367,1766782232062,-203.44197027,0.00013725,2]
[399869368,1766782232073,-166.66,0.00013849,2]
[399869369,1766782232084,-1000.0,0.00014,2]
[399869370,1766782232095,-598.1602,0.00014033,2]
[399869371,1766782232105,-2290.85777808,0.00014038,2]
[399869372,1766782232114,-203.44197027,0.00014038,2]
[399869373,1766782232124,-802.54493841,0.00014038,2]
[399869374,1766782232134,-200.0,0.00014052,2]
[399869375,1766782232143,-322.6107,0.00014127,2]
[399869376,1766782232153,-151.0,0.0001413,2]
[399869377,1766782232168,-300.0,0.00014131,2]
[399869378,1766782232179,-640.18386985,0.00014132,2]
[399869379,1766782232190,-240.85025101,0.00014132,2]
[399869380,1766782232200,-2399.7052432,0.00014133,2]
[399869383,1766782232221,-405.95789884,0.00014133,2]
[399869397,1766782238017,-2978.91,0.00014133,2]
[399869399,1766782238067,-475.6788593,0.00014133,2]
[399869400,1766782238190,-484.00000004,0.00014133,2]
[399869401,1766782238231,-1133.44281862,0.00014133,2]
[399869529,1766782240192,-564.53512659,0.00014133,2]
[399869530,1766782240205,-1394.95862677,0.00014133,2]
[399869531,1766782240354,-1391.778795,0.00014133,2]
[399869544,1766782244425,-299.99,0.00014133,2]
[399869557,1766782246105,-4796.52507576,0.00014133,2]
[399869558,1766782246324,-10551.30693717,0.00014133,2]
[399869582,1766783100961,168.38,0.00010477,2]
[399869585,1766783327317,374.0,0.0003,120]
[399869666,1766783432177,-646.62018074,0.00013257,2]
[399869667,1766783432190,-461.17361602,0.00013257,2]
[399869668,1766783432201,-1000.99,0.00013257,2]
[399869669,1766783432214,-407.74984699,0.00013257,2]
[399869670,1766783432237,-1024.37603158,0.00013257,2]
[399869671,1766783432248,-300.0,0.00013272,2]
[399869672,1766783432258,-1105.70745771,0.00013272,2]
[399869673,1766783432288,-7.38254229,0.00013272,2]
[399869674,1766783432297,-300.0,0.00013557,2]
[399869675,1766783432308,-569.79,0.00013699,2]
[399869676,1766783432318,-200.0,0.00013699,2]
[399869677,1766783432328,-150.0,0.00013858,2]
[399869678,1766783432338,-150.0,0.00013885,2]
[399869679,1766783432347,-212.38467771,0.000139,2]
[399869680,1766783432357,-2127.83871499,0.000139,2]
[399869681,1766783432368,-721.66917572,0.000139,2]
[399869682,1766783432377,-1000.0,0.000139,2]
[399869683,1766783432387,-161.02491103,0.00013913,2]
[399869684,1766783432396,-151.0,0.00013929,2]
[399869685,1766783432406,-151.0,0.0001393,2]
[399869686,1766783432415,-913.03583826,0.00013931,2]
[399869687,1766783432427,-86.96416174,0.00013931,2]
[399869688,1766783432438,-500.0,0.00013932,2]
[399869689,1766783432447,-302.60843965,0.00013932,2]
[399869690,1766783432458,-444.50112546,0.00013932,2]
[399869691,1766783432468,-217.401239,0.00013932,2]
[399869692,1766783432478,-500.0,0.00013932,2]
[399869693,1766783432489,-500.0,0.00013932,2]
[399869694,1766783432498,-500.0,0.00013932,2]
[399869695,1766783432508,-326.42490946,0.00013932,2]
[399869696,1766783432518,-411.03358877,0.00013932,2]
[399869697,1766783432530,-88.96641123,0.00013932,2]
[399869698,1766783432539,-438.72457444,0.00013932,2]
[399869699,1766783432551,-61.27542556,0.00013932,2]
[399869700,1766783432561,-332.90175693,0.00013932,2]
[399869713,1766783438306,-167.09824307,0.00013932,2]
[399869714,1766783438317,-500.0,0.00013932,2]
[399869715,1766783438327,-500.0,0.00013932,2]
[399869716,1766783438338,-500.0,0.00013932,2]
[399869717,1766783438348,-500.0,0.00013932,2]
[399869718,1766783438359,-500.0,0.00013932,2]
[399869719,1766783438369,-500.0,0.00013932,2]
[399869720,1766783438380,-500.0,0.00013932,2]
[399869721,1766783438390,-500.0,0.00013932,2]
[399869722,1766783438400,-500.0,0.00013932,2]
[399869723,1766783438410,-500.0,0.00013932,2]
[399869724,1766783438420,-500.0,0.00013932,2]
[399869725,1766783438430,-500.0,0.00013932,2]
[399869726,1766783438440,-500.0,0.00013932,2]
[399869727,1766783438451,-500.0,0.00013932,2]
[399869728,1766783438463,-500.0,0.00013932,2]
[399869729,1766783438473,-500.0,0.00013932,2]
[399869730,1766783438484,-500.0,0.00013932,2]
[399869731,1766783438494,-500.0,0.00013932,2]
[399869732,1766783438504,-500.0,0.00013932,2]
[399869733,1766783438514,-500.0,0.00013932,2]
[399869734,1766783438525,-500.0,0.00013932,2]
[399869736,1766783438535,-500.0,0.00013932,2]
[399869738,1766783438545,-500.0,0.00013932,2]
[399869740,1766783438554,-500.0,0.00013932,2]
[399869742,1766783438564,-500.0,0.00013932,2]
[399869744,1766783438574,-500.0,0.00013932,2]
[399869746,1766783438583,-500.0,0.00013932,2]
[399869748,1766783438593,-500.0,0.00013932,2]
[399869750,1766783438606,-500.0,0.00013932,2]
[399869752,1766783438616,-500.0,0.00013932,2]
[399869753,1766783438627,-181.19393957,0.00013932,2]
[399869755,1766783438637,-500.0,0.00013932,2]
[399869757,1766783438646,-500.0,0.00013932,2]
[399869759,1766783438656,-500.0,0.00013932,2]
[399869761,1766783438667,-731.19653373,0.00013932,2]
[399869763,1766783438676,-731.19653373,0.00013932,2]
[399869765,1766783438686,-731.19653373,0.00013932,2]
[399869767,1766783438696,-731.19653373,0.00013932,2]
[399869769,1766783438705,-731.19653373,0.00013932,2]
[399869771,1766783438715,-219.89741163,0.00013932,2]
[399869773,1766783438728,-511.2991221,0.00013932,2]
[399869775,1766783438738,-147.17931149,0.00013932,2]
[399869777,1766783438751,-584.01722224,0.00013932,2]
[399869779,1766783438762,-731.19653373,0.00013932,2]
[399869781,1766783438771,-731.19653373,0.00013932,2]
[399869783,1766783438781,-731.19653373,0.00013932,2]
[399869785,1766783438791,-731.19653373,0.00013932,2]
[399869787,1766783438801,-731.19653373,0.00013932,2]
[399869789,1766783438810,-731.19653373,0.00013932,2]
[399869791,1766783438820,-731.19653373,0.00013932,2]
[399869792,1766783438830,-731.19653373,0.00013932,2]
[399869793,1766783438839,-731.19653373,0.00013932,2]
[399869794,1766783438850,-731.19653373,0.00013932,2]
[399869795,1766783438861,-731.19653373,0.00013932,2]
[399869796,1766783438871,-731.19653373,0.00013932,2]
[399869797,1766783438881,-731.19653373,0.00013932,2]
[399869798,1766783438891,-731.19653373,0.00013932,2]
[399869799,1766783438901,-731.19653373,0.00013932,2]
[399869800,1766783438911,-731.19653373,0.00013932,2]
[399869801,1766783438922,-721.84823804,0.00013932,2]
[399869802,1766783438935,-9.34829569,0.00013932,2]
[399869803,1766783438945,-630.46860101,0.00013932,2]
[399869804,1766783438962,-100.72793272,0.00013932,2]
[399869805,1766783438971,-731.19653373,0.00013932,2]
[399869806,1766783438982,-731.19653373,0.00013932,2]
[399869807,1766783438996,-731.19653373,0.00013932,2]
[399869808,1766783439006,-731.19653373,0.00013932,2]
[399869809,1766783439016,-731.19653373,0.00013932,2]
[399869810,1766783439027,-731.19653373,0.00013932,2]
[399869811,1766783439038,-731.19653373,0.00013932,2]
[399869812,1766783439048,-731.19653373,0.00013932,2]
[399869813,1766783439058,-731.19653373,0.00013932,2]
[399869814,1766783439071,-731.19653373,0.00013932,2]
[399869815,1766783439081,-731.19653373,0.00013932,2]
[399869816,1766783439089,-731.19653373,0.00013932,2]
[399869817,1766783439098,-731.19653373,0.00013932,2]
[399869818,1766783439106,-731.19653373,0.00013932,2]
[399869819,1766783439113,-731.19653373,0.00013932,2]
[399869820,1766783439122,-717.90205128,0.00013932,2]
[399869821,1766783439131,-717.90205128,0.00013932,2]
[399869822,1766783439139,-717.90205128,0.00013932,2]
[399869823,1766783439147,-717.90205128,0.00013932,2]
[399869824,1766783439156,-717.90205128,0.00013932,2]
[399869825,1766783439163,-717.90205128,0.00013932,2]
[399869826,1766783439171,-717.90205128,0.00013932,2]
[399869827,1766783439178,-717.90205128,0.00013932,2]
[399869828,1766783439186,-717.90205128,0.00013932,2]
[399869829,1766783439194,-717.90205128,0.00013932,2]
[399869830,1766783439204,-717.90205126,0.00013932,2]
[399869831,1766783439214,-241.62,0.00013932,2]
[399869832,1766783439223,-12505.96720725,0.00013933,2]
[399869833,1766783440288,-342.93822665,0.00013933,2]
[399869834,1766783440555,-109515.8277554,0.00013933,2]
[399869835,1766783440567,-415.09051522,0.00013933,2]
[399869836,1766783440609,-1700.0,0.00013933,2]
[399869838,1766783440668,-1209.04444001,0.00013933,2]
[399869877,1766783443914,-1080.15155983,0.00013933,2]
[399869878,1766783443926,-304.30313845,0.00013933,2]
[399869879,1766783443937,-2160.70713976,0.00013933,2]
[399869880,1766783443953,-3081.29659313,0.00013933,2]
[399869881,1766783443965,-340.86111214,0.00013933,2]
[399869882,1766783444687,-748.63230573,0.00013933,2]
[399869905,1766783446301,-655.29815995,0.00013933,2]
[399869906,1766783446466,-490.520002,0.00013933,2]
[399869907,1766783446480,-341.32290013,0.00013933,2]
[399869972,1766783557773,200.0,0.0003013,120]
[399870040,1766783663587,999.0,0.00013368,3]
[399870117,1766784001732,200.0,0.00030137,120]
[399870269,1766784369610,454.57,6.419e-05,2]
[399870270,1766784369853,454.57,6.757e-05,2]
[399870271,1766784370053,454.57,7.094e-05,2]
[399870272,1766784370245,454.57,7.432e-05,2]
[399870273,1766784370483,454.57,7.77e-05,2]
[399870274,1766784370889,454.57,8.108e-05,2]
[399870275,1766784371093,454.57,8.446e-05,2]
[399870276,1766784371296,454.57,8.784e-05,2]
[399870277,1766784372316,454.57,9.121e-05,2]
[399870278,1766784372526,454.57,9.459e-05,2]
[399870279,1766784372738,454.57,9.797e-05,2]
[399870280,1766784372923,454.57,0.00010135,2]
[399870281,1766784373126,454.57,0.00010473,2]
[399870282,1766784373374,454.57,0.00010811,2]
[399870283,1766784373592,454.57,0.00011148,2]
[399870284,1766784374013,454.57,0.00011486,2]
[399870285,1766784374233,454.57,0.00011824,2]
[399870286,1766784384385,-403.64480668,0.00012162,2]
[399870287,1766784386394,-50.92519332,0.00012162,2]
[399870288,1766784386418,-201.29873156,0.000125,2]
[399870289,1766784389225,-250.0,0.000125,2]
[399870302,1766784503110,-3.27126844,0.000125,2]
[399870303,1766784503133,-220.54331013,0.000125,2]
[399870305,1766784519112,4215.39228783,0.0001,2]
[399870346,1766784631315,-86.05619178,0.000125,2]
[399870347,1766784631326,-166.66,0.00012705,2]
[399870348,1766784631336,-152.29,0.00012775,2]
[399870349,1766784631347,-454.57,0.00012838,2]